[Event "GER-ch Youth-U10 2022"]
[Site "Willingen"]
[Date "2022.06.06"]
[Round "3.21"]
[White "Wolf, Noah"]
[Black "Fischermann, Simon"]
[Result "0-1"]
[ECO "C54"]
[WhiteElo "1073"]
[BlackElo "1344"]
[Annotator "NA RC COMBH"]
[PlyCount "84"]
[EventDate "2022.06.05"]
[EventType "swiss"]
[EventRounds "11"]
[EventCountry "GER"]
[SourceTitle "playchess.com"]
[Source "ChessBase"]
[SourceQuality "1"]
[TimeControl "40/4500+30:900+30"]

1. e4 {[%emt 0:00:03]} e5 {[%emt 0:00:16]} 2. Nf3 {[%emt 0:00:11]} Nc6 {[%emt 0:00:08]} 3. Bc4 {[%emt 0:00:13]} Bc5 {[%emt 0:00:13]} 4. c3 {[%emt 0:00:11]} Nf6 {[%emt 0:00:29]} 5. d4 {[%emt 0:00:09]} exd4 {[%emt 0:00:07]} 6. b4 {[%emt 0:00:50]} Bb6 {[%emt 0:00:48]} 7. e5 {[%emt 0:01:47]} d5 {[%emt 0:01:04]} 8. exf6 {[%emt 0:00:53]} dxc4 {[%emt 0:00:09]} 9. b5 {[%emt 0:01:02]} Na5 {[%emt 0:03:26]} 10. fxg7 {[%emt 0:00:49]} Rg8 {[%emt 0:01:13]} 11. O-O {[%emt 0:01:14]} d3 {[%emt 0:01:03]} 12. Bg5 {[%emt 0:01:24]} Qd5 {[%emt 0:00:54]} 13. Ne5 {[%emt 0:03:29]} Rxg7 {[%emt 0:00:48]} 14. Qh5 {[%emt 0:00:58]} Qxe5 {[%emt 0:00:34]} 15. Nd2 {[%emt 0:01:11]} Qxg5 {[%emt 0:00:22]} 16. Qxg5 {[%emt 0:01:11]} Rxg5 {[%emt 0:00:19]} 17. Ne4 {[%emt 0:01:22]} Rg7 {[%emt 0:01:08]} 18. Nf6+ {[%emt 0:02:04]} Kf8 {[%emt 0:00:08]} 19. Rfe1 {[%emt 0:01:04]} Be6 {[%emt 0:00:36]} 20. Re4 {[%emt 0:03:53]} Rd8 {[%emt 0:00:34]} 21. Rae1 {[%emt 0:01:36]} d2 {[%emt 0:00:43]} 22. Rd1 {[%emt 0:00:43]} Bf5 {[%emt 0:00:11]} 23. Re2 {[%emt 0:01:03]} Rg6 {[%emt 0:00:52]} 24. g4 {[%emt 0:01:20]} Rxf6 {[%emt 0:00:18]} 25. gxf5 {[%emt 0:00:37]} Rxf5 {[%emt 0:00:02]} 26. Rdxd2 {[%emt 0:00:54]} Rxd2 {[%emt 0:00:11]} 27. Rxd2 {[%emt 0:00:35]} Rxf2 {[%emt 0:00:03]} 28. Rxf2 {[%emt 0:00:16]} Bxf2+ {[%emt 0:00:09]} 29. Kxf2 {[%emt 0:00:54]} Nb3 {[%emt 0:00:03]} 30. axb3 {[%emt 0:00:28]} cxb3 {[%emt 0:00:06]} 31. b6 {[%emt 0:00:08]} cxb6 {[%emt 0:00:11]} 32. c4 {[%emt 0:00:05]} b2 {[%emt 0:00:06]} 33. c5 {[%emt 0:01:54]} b1=Q {[%emt 0:00:14]} 34. cxb6 {[%emt 0:00:13]} Qxb6+ {[%emt 0:00:05]} 35. Kf3 {[%emt 0:00:08]} a5 {[%emt 0:00:11]} 36. h4 {[%emt 0:00:17]} a4 {[%emt 0:00:08]} 37. h5 {[%emt 0:00:08]} a3 {[%emt 0:00:07]} 38. h6 {[%emt 0:00:06]} Qd4 {[%emt 0:00:09]} 39. Ke2 {[%emt 0:00:28]} a2 {[%emt 0:00:05]} 40. Kf3 {[%emt 0:00:10]} a1=Q {[%emt 0:00:15]} 41. Kg2 {[%emt 0:00:20]} Qe3 {[%emt 0:16:05]} 42. Kh2 {[%emt 0:15:18]} Qag1# {[%emt 0:00:11]} 0-1

[Event "GER-ch Youth-U10 2022"]
[Site "Willingen"]
[Date "2022.06.06"]
[Round "3.22"]
[White "Li, Joshua"]
[Black "Fischer, Quirin"]
[Result "0-1"]
[ECO "B39"]
[WhiteElo "1599"]
[BlackElo "1195"]
[Annotator "NA RC COMBH"]
[PlyCount "104"]
[EventDate "2022.06.05"]
[EventType "swiss"]
[EventRounds "11"]
[EventCountry "GER"]
[SourceTitle "playchess.com"]
[Source "ChessBase"]
[SourceQuality "1"]
[TimeControl "40/4500+30:900+30"]

1. e4 {[%emt 0:00:01]} c5 {[%emt 0:00:06]} 2. Nf3 {[%emt 0:00:05]} Nc6 {[%emt 0:00:05]} 3. d4 {[%emt 0:00:07]} cxd4 {[%emt 0:00:05]} 4. Nxd4 {[%emt 0:00:05]} g6 {[%emt 0:00:05]} 5. c4 {[%emt 0:00:05]} Bg7 {[%emt 0:00:06]} 6. Be3 {[%emt 0:00:07]} Nf6 {[%emt 0:00:13]} 7. Nc3 {[%emt 0:00:06]} Ng4 {[%emt 0:00:20]} 8. Nxc6 {[%emt 0:05:45]} Nxe3 {[%emt 0:00:31]} 9. fxe3 {[%emt 0:03:35]} bxc6 {[%emt 0:00:17]} 10. Bd3 {[%emt 0:01:09]} Qa5 {[%emt 0:01:01]} 11. Qb3 {[%emt 0:00:36]} O-O {[%emt 0:00:19]} 12. O-O {[%emt 0:00:05]} Qc5 {[%emt 0:00:58]} 13. Rf3 {[%emt 0:00:23]} Qb6 {[%emt 0:03:20]} 14. Qxb6 {[%emt 0:01:17]} axb6 {[%emt 0:01:53]} 15. Bc2 {[%emt 0:00:29]} Bxc3 {[%emt 0:00:31]} 16. bxc3 {[%emt 0:00:46]} Ra3 {[%emt 0:00:34]} 17. Bb3 {[%emt 0:00:06]} Ba6 {[%emt 0:00:17]} 18. Rd1 {[%emt 0:03:55]} d6 {[%emt 0:04:41]} 19. Rdf1 {[%emt 0:00:44]} e6 {[%emt 0:00:34]} 20. R1f2 {[%emt 0:00:28]} b5 {[%emt 0:00:47]} 21. c5 {[%emt 0:00:42]} d5 {[%emt 0:01:30]} 22. exd5 {[%emt 0:01:12]} cxd5 {[%emt 0:00:37]} 23. Rf4 {[%emt 0:01:17]} f5 {[%emt 0:00:13]} 24. g4 {[%emt 0:01:22]} Rc8 {[%emt 0:00:23]} 25. gxf5 {[%emt 0:00:50]} exf5 {[%emt 0:01:01]} 26. Bxd5+ {[%emt 0:00:57]} Kg7 {[%emt 0:00:31]} 27. c6 {[%emt 0:05:11]} Rxc3 {[%emt 0:00:22]} 28. Rd4 {[%emt 0:02:02]} Rxe3 {[%emt 0:00:41]} 29. Rc2 {[%emt 0:01:38]} Kf6 {[%emt 0:00:19]} 30. Bb3 {[%emt 0:00:44]} Re7 {[%emt 0:02:16]} 31. c7 {[%emt 0:00:59]} Bb7 {[%emt 0:01:01]} 32. Rd6+ {[%emt 0:03:18]} Kg7 {[%emt 0:01:45]} 33. Be6 {[%emt 0:03:51]} Rcxc7 {[%emt 0:00:21]} 34. Rxc7 {[%emt 0:01:17]} Rxc7 {[%emt 0:00:46]} 35. Rd7+ {[%emt 0:00:33]} Rxd7 {[%emt 0:00:06]} 36. Bxd7 {[%emt 0:00:05]} Bd5 {[%emt 0:00:20]} 37. Bxb5 {[%emt 0:00:24]} Bxa2 {[%emt 0:00:07]} 38. Bd3 {[%emt 0:00:25]} Kf6 {[%emt 0:00:07]} 39. Kf2 {[%emt 0:00:05]} Ke5 {[%emt 0:00:06]} 40. Be2 {[%emt 0:00:20]} h6 {[%emt 0:00:04]} 41. Kg3 {[%emt 0:15:18]} Bf7 {[%emt 0:15:11]} 42. Kf2 {[%emt 0:00:48]} Kf4 {[%emt 0:00:07]} 43. Bd1 {[%emt 0:00:09]} g5 {[%emt 0:00:08]} 44. h3 {[%emt 0:00:17]} h5 {[%emt 0:00:02]} 45. Be2 {[%emt 0:00:40]} Bd5 {[%emt 0:00:10]} 46. Bd1 {[%emt 0:00:10]} g4 {[%emt 0:00:25]} 47. hxg4 {[%emt 0:00:13]} hxg4 {[%emt 0:00:07]} 48. Kg1 {[%emt 0:00:36]} Kg3 {[%emt 0:00:45]} 49. Be2 {[%emt 0:00:29]} f4 {[%emt 0:00:05]} 50. Bf1 {[%emt 0:00:16]} f3 {[%emt 0:01:51]} 51. Bg2 {[%emt 0:03:54]} f2+ {[%emt 0:00:00]} 52. Kf1 {[%emt 0:00:09]} Bc4# {[%emt 0:00:00]} 0-1

[Event "GER-ch Youth-U10 2022"]
[Site "Willingen"]
[Date "2022.06.06"]
[Round "3.23"]
[White "Wang, Kaiwen"]
[Black "Bundan, Edward"]
[Result "0-1"]
[ECO "B48"]
[WhiteElo "1151"]
[BlackElo "1240"]
[Annotator "NA RC COMBH"]
[PlyCount "96"]
[EventDate "2022.06.05"]
[EventType "swiss"]
[EventRounds "11"]
[EventCountry "GER"]
[SourceTitle "playchess.com"]
[Source "ChessBase"]
[SourceQuality "1"]
[TimeControl "40/4500+30:900+30"]

1. e4 {[%emt 0:00:03]} c5 {[%emt 0:00:04]} 2. Nf3 {[%emt 0:00:07]} e6 {[%emt 0:00:06]} 3. d4 {[%emt 0:00:07]} cxd4 {[%emt 0:00:07]} 4. Nxd4 {[%emt 0:00:11]} Nc6 {[%emt 0:00:06]} 5. Nc3 {[%emt 0:00:13]} Qc7 {[%emt 0:00:15]} 6. Be3 {[%emt 0:00:16]} Nf6 {[%emt 0:00:17]} 7. Bd3 {[%emt 0:00:17]} Bb4 {[%emt 0:00:58]} 8. O-O {[%emt 0:02:30]} O-O {[%emt 0:01:06]} 9. f4 {[%emt 0:01:41]} d6 {[%emt 0:03:21]} 10. f5 {[%emt 0:02:57]} Bc5 {[%emt 0:02:14]} 11. fxe6 {[%emt 0:06:02]} Nxd4 {[%emt 0:03:50]} 12. exf7+ {[%emt 0:00:26]} Rxf7 {[%emt 0:07:55]} 13. Bc4 {[%emt 0:01:12]} Be6 {[%emt 0:00:38]} 14. Nd5 {[%emt 0:04:35]} Bxd5 {[%emt 0:04:55]} 15. Rxf6 {[%emt 0:01:41]} Bxc4 {[%emt 0:02:21]} 16. Rxf7 {[%emt 0:00:16]} Bxf7 {[%emt 0:00:38]} 17. Bxd4 {[%emt 0:00:07]} Bxd4+ {[%emt 0:00:10]} 18. Qxd4 {[%emt 0:00:07]} Qc5 {[%emt 0:00:30]} 19. Rd1 {[%emt 0:00:39]} Qxd4+ {[%emt 0:00:45]} 20. Rxd4 {[%emt 0:00:09]} Rd8 {[%emt 0:00:49]} 21. e5 {[%emt 0:00:25]} d5 {[%emt 0:00:32]} 22. c4 {[%emt 0:00:14]} Kf8 {[%emt 0:00:47]} 23. c5 {[%emt 0:01:18]} Ke7 {[%emt 0:00:27]} 24. Ra4 {[%emt 0:00:37]} a6 {[%emt 0:00:34]} 25. Rb4 {[%emt 0:00:25]} Rd7 {[%emt 0:00:50]} 26. Rb6 {[%emt 0:00:38]} d4 {[%emt 0:00:33]} 27. Rd6 {[%emt 0:00:16]} Rxd6 {[%emt 0:00:22]} 28. exd6+ {[%emt 0:00:08]} Kd7 {[%emt 0:00:10]} 29. a3 {[%emt 0:00:20]} b6 {[%emt 0:01:11]} 30. b4 {[%emt 0:00:20]} bxc5 {[%emt 0:00:08]} 31. bxc5 {[%emt 0:00:06]} Kc6 {[%emt 0:00:22]} 32. Kf2 {[%emt 0:00:10]} Be6 {[%emt 0:00:08]} 33. Ke2 {[%emt 0:00:07]} Kxc5 {[%emt 0:00:11]} 34. Kd3 {[%emt 0:00:06]} Bf5+ {[%emt 0:00:17]} 35. Kd2 {[%emt 0:00:10]} Kxd6 {[%emt 0:00:04]} 36. h3 {[%emt 0:00:05]} Kd5 {[%emt 0:00:08]} 37. g4 {[%emt 0:00:09]} Be4 {[%emt 0:00:07]} 38. h4 {[%emt 0:00:06]} h6 {[%emt 0:00:11]} 39. g5 {[%emt 0:00:07]} hxg5 {[%emt 0:00:06]} 40. hxg5 {[%emt 0:00:08]} Ke5 {[%emt 0:00:26]} 41. Kc1 {[%emt 0:15:13]} Kf5 {[%emt 0:15:04]} 42. Kd2 {[%emt 0:00:05]} Kxg5 {[%emt 0:00:06]} 43. Kc1 {[%emt 0:00:05]} Kf4 {[%emt 0:00:10]} 44. Kd2 {[%emt 0:00:04]} d3 {[%emt 0:00:06]} 45. Kd1 {[%emt 0:00:05]} Ke3 {[%emt 0:00:10]} 46. a4 {[%emt 0:00:05]} Bf3+ {[%emt 0:00:06]} 47. Ke1 {[%emt 0:00:07]} d2+ {[%emt 0:00:06]} 48. Kf1 {[%emt 0:00:04]} d1=Q# {[%emt 0:00:09]} 0-1

[Event "GER-ch Youth-U10 2022"]
[Site "Willingen"]
[Date "2022.06.06"]
[Round "3.24"]
[White "Andersen, Jonatan M"]
[Black "Hellriegel, Hannes"]
[Result "1-0"]
[ECO "C50"]
[WhiteElo "1857"]
[BlackElo "1335"]
[Annotator "NA RC COMBH"]
[PlyCount "57"]
[EventDate "2022.06.05"]
[EventType "swiss"]
[EventRounds "11"]
[EventCountry "GER"]
[SourceTitle "playchess.com"]
[Source "ChessBase"]
[SourceQuality "1"]
[TimeControl "40/4500+30:900+30"]

1. e4 {[%emt 0:00:01]} e5 {[%emt 0:00:06]} 2. Nf3 {[%emt 0:00:05]} Nc6 {[%emt 0:00:08]} 3. d4 {[%emt 0:00:06]} exd4 {[%emt 0:00:20]} 4. Nxd4 {[%emt 0:00:05]} Nxd4 {[%emt 0:00:10]} 5. Qxd4 {[%emt 0:00:08]} Be7 {[%emt 0:03:04]} 6. Bc4 $14 {[%emt 0:00:12]} ({Better is} 6. Qxg7 $18 Bf6 7. Qg3) 6... Bf8 {[%emt 0:08:42]} 7. O-O {[%emt 0:00:32]} c5 {[%emt 0:03:42]} 8. Qd3 {[%emt 0:01:20]} Qf6 {[%emt 0:02:41]} 9. Nc3 {[%emt 0:00:28]} Ne7 {[%emt 0:01:01]} 10. Nb5 {[%emt 0:00:38]} Kd8 {[%emt 0:10:42]} 11. Nd6 {[%emt 0:01:39]} Kc7 {[%emt 0:07:23]} 12. Nxf7 {[%emt 0:00:33]} Rg8 {[%emt 0:00:41]} 13. e5 {[%emt 0:01:04]} Qg6 {[%emt 0:04:39]} 14. Qd6+ {[%emt 0:00:22]} Qxd6 {[%emt 0:00:22]} 15. exd6+ {[%emt 0:00:04]} Kb8 {[%emt 0:00:34]} 16. dxe7 {[%emt 0:00:11]} a6 {[%emt 0:01:22]} 17. e8=Q {[%emt 0:00:41]} Ka7 {[%emt 0:00:51]} 18. Nd6 {[%emt 0:00:20]} b5 {[%emt 0:01:05]} 19. Bxg8 {[%emt 0:00:14]} Bb7 {[%emt 0:00:32]} 20. Qxd7 {[%emt 0:00:16]} Rb8 {[%emt 0:00:25]} 21. Bd5 {[%emt 0:00:28]} Bxd6 {[%emt 0:00:20]} 22. Bxb7 {[%emt 0:00:17]} Bxh2+ {[%emt 0:00:37]} 23. Kxh2 {[%emt 0:00:09]} Rxb7 {[%emt 0:00:08]} 24. Qc6 {[%emt 0:00:09]} h5 {[%emt 0:00:49]} 25. Be3 {[%emt 0:00:18]} g5 {[%emt 0:00:38]} 26. Bxc5+ {[%emt 0:00:08]} Kb8 {[%emt 0:00:26]} 27. Rfe1 {[%emt 0:00:10]} Re7 {[%emt 0:01:19]} 28. Rxe7 {[%emt 0:00:20]} h4 {[%emt 0:00:11]} 29. Qb7# {[%emt 0:00:06]} 1-0

[Event "GER-ch Youth-U10 2022"]
[Site "Willingen"]
[Date "2022.06.06"]
[Round "3.25"]
[White "Classen, Marnin"]
[Black "Mulgunov, Jefim Nikolaj"]
[Result "1-0"]
[ECO "C90"]
[WhiteElo "1168"]
[BlackElo "1055"]
[Annotator "NA RC COMBH"]
[PlyCount "63"]
[EventDate "2022.06.05"]
[EventType "swiss"]
[EventRounds "11"]
[EventCountry "GER"]
[SourceTitle "playchess.com"]
[Source "ChessBase"]
[SourceQuality "1"]
[TimeControl "40/4500+30:900+30"]

1. e4 {[%emt 0:00:03]} e5 {[%emt 0:00:08]} 2. Nf3 {[%emt 0:00:11]} Nc6 {[%emt 0:00:13]} 3. Bb5 {[%emt 0:00:14]} a6 {[%emt 0:00:09]} 4. Ba4 {[%emt 0:00:11]} Nf6 {[%emt 0:00:34]} 5. O-O {[%emt 0:00:29]} b5 {[%emt 0:00:11]} 6. Bb3 {[%emt 0:00:15]} Bb7 {[%emt 0:00:34]} 7. Re1 {[%emt 0:00:24]} Be7 {[%emt 0:00:47]} 8. d3 {[%emt 0:00:17]} O-O {[%emt 0:01:07]} 9. c3 {[%emt 0:00:15]} d6 {[%emt 0:00:24]} 10. Nbd2 {[%emt 0:01:54]} Qd7 {[%emt 0:00:51]} 11. Nf1 {[%emt 0:00:21]} Na5 {[%emt 0:00:48]} 12. Bc2 {[%emt 0:00:35]} Rad8 {[%emt 0:00:56]} 13. b4 {[%emt 0:00:34]} Nc6 {[%emt 0:00:33]} 14. Bb2 {[%emt 0:00:44]} d5 {[%emt 0:00:23]} 15. Ne3 {[%emt 0:01:02]} d4 {[%emt 0:02:50]} 16. Nf5 {[%emt 0:01:57]} a5 {[%emt 0:02:38]} 17. bxa5 {[%emt 0:00:26]} Bc5 {[%emt 0:03:08]} 18. Qd2 {[%emt 0:01:16]} dxc3 {[%emt 0:04:04]} 19. Bxc3 {[%emt 0:00:27]} Ng4 {[%emt 0:00:45]} 20. Re2 {[%emt 0:00:47]} Qe6 {[%emt 0:00:44]} 21. h3 {[%emt 0:01:49]} Nh6 {[%emt 0:01:42]} 22. Nxh6+ {[%emt 0:01:33]} Qxh6 {[%emt 0:00:01]} 23. Qxh6 {[%emt 0:00:38]} gxh6 {[%emt 0:00:12]} 24. Nxe5 {[%emt 0:00:22]} Nd4 {[%emt 0:02:47]} 25. Rd2 {[%emt 0:00:49]} Nxc2 {[%emt 0:00:28]} 26. Rxc2 {[%emt 0:00:54]} f6 {[%emt 0:01:09]} 27. Ng4 {[%emt 0:02:17]} Rxd3 {[%emt 0:01:40]} 28. Bxf6 {[%emt 0:09:29]} Kf7 {[%emt 0:01:45]} 29. Rxc5 {[%emt 0:00:41]} Ke8 {[%emt 0:00:51]} 30. Re5+ {[%emt 0:01:43]} Kd7 {[%emt 0:00:32]} 31. Rxb5 {[%emt 0:01:11]} Bxe4 {[%emt 0:00:22]} 32. Ne5+ {[%emt 0:01:06]} 1-0

[Event "GER-ch Youth-U10 2022"]
[Site "Willingen"]
[Date "2022.06.06"]
[Round "3.27"]
[White "Antonius, Richard-Malte"]
[Black "Meurer, Knut"]
[Result "1-0"]
[ECO "D02"]
[WhiteElo "1106"]
[BlackElo "998"]
[Annotator "NA RC COMBH"]
[PlyCount "53"]
[EventDate "2022.06.05"]
[EventType "swiss"]
[EventRounds "11"]
[EventCountry "GER"]
[SourceTitle "playchess.com"]
[Source "ChessBase"]
[SourceQuality "1"]
[TimeControl "40/4500+30:900+30"]

1. d4 {[%emt 0:00:01]} d5 {[%emt 0:00:01]} 2. c3 {[%emt 0:00:06]} Nf6 {[%emt 0:00:04]} 3. Nf3 {[%emt 0:00:04]} c5 {[%emt 0:00:13]} 4. Bf4 {[%emt 0:00:08]} Nc6 {[%emt 0:00:16]} 5. e3 {[%emt 0:00:08]} Bg4 {[%emt 0:00:17]} 6. Nbd2 {[%emt 0:00:09]} Bxf3 {[%emt 0:00:19]} 7. Nxf3 {[%emt 0:00:06]} e6 {[%emt 0:00:23]} 8. Bd3 {[%emt 0:00:06]} c4 {[%emt 0:00:10]} 9. Bc2 {[%emt 0:00:06]} Be7 {[%emt 0:00:19]} 10. O-O {[%emt 0:00:24]} O-O {[%emt 0:00:08]} 11. Re1 {[%emt 0:00:06]} h6 {[%emt 0:00:48]} 12. e4 {[%emt 0:00:21]} Qd7 {[%emt 0:01:03]} 13. e5 {[%emt 0:00:13]} Nh5 {[%emt 0:01:08]} 14. Bg3 Nxg3 {[%emt 0:00:53]} 15. hxg3 {[%emt 0:00:18]} Qc7 {[%emt 0:02:12]} 16. Bb1 {[%emt 0:02:34]} Bg5 {[%emt 0:01:47]} 17. Nxg5 {[%emt 0:00:10]} hxg5 {[%emt 0:00:09]} 18. Qc2 {[%emt 0:00:10]} f5 {[%emt 0:01:38]} 19. exf6 {[%emt 0:01:01]} Rxf6 {[%emt 0:00:39]} 20. Qh7+ {[%emt 0:00:46]} Kf7 {[%emt 0:00:00]} 21. Qh5+ {[%emt 0:00:17]} g6 {[%emt 0:00:16]} 22. Qh7+ {[%emt 0:00:25]} Kf8 {[%emt 0:01:46]} 23. Qxc7 {[%emt 0:00:06]} Rf7 {[%emt 0:00:10]} 24. Qd6+ {[%emt 0:01:05]} Re7 {[%emt 0:00:31]} 25. Rxe6 {[%emt 0:00:21]} Ke8 {[%emt 0:01:26]} 26. Rxe7+ {[%emt 0:00:18]} Nxe7 {[%emt 0:00:09]} 27. Qf6 {[%emt 0:00:19]} 1-0

[Event "GER-ch Youth-U10 2022"]
[Site "Willingen"]
[Date "2022.06.06"]
[Round "4.1"]
[White "Zhang, Yibo"]
[Black "Nezhyvenko, Mykhaylo"]
[Result "0-1"]
[ECO "B40"]
[WhiteElo "1436"]
[BlackElo "1488"]
[Annotator "NA RC COMBH"]
[PlyCount "84"]
[EventDate "2022.06.05"]
[EventType "swiss"]
[EventRounds "11"]
[EventCountry "GER"]
[SourceTitle "playchess.com"]
[Source "ChessBase"]
[SourceQuality "1"]
[TimeControl "40/4500+30:900+30"]

1. e4 {[%emt 0:00:05]} c5 {[%emt 0:00:01]} 2. Nf3 {[%emt 0:00:07]} e6 {[%emt 0:00:04]} 3. c4 {[%emt 0:00:12]} Nc6 {[%emt 0:00:07]} 4. Nc3 {[%emt 0:00:10]} Nd4 {[%emt 0:00:04]} 5. d3 {[%emt 0:03:59]} Ne7 {[%emt 0:01:27]} 6. Bf4 {[%emt 0:07:01]} Nec6 {[%emt 0:00:23]} 7. Be2 {[%emt 0:01:40]} Be7 {[%emt 0:01:23]} 8. O-O {[%emt 0:01:36]} g5 {[%emt 0:00:07]} 9. Bd2 {[%emt 0:02:23]} h5 {[%emt 0:06:47]} 10. Nb5 {[%emt 0:02:49]} Nxe2+ {[%emt 0:00:53]} 11. Qxe2 {[%emt 0:00:36]} g4 {[%emt 0:00:08]} 12. Ne1 {[%emt 0:01:46]} a6 {[%emt 0:01:02]} 13. Bc3 {[%emt 0:02:00]} Rg8 {[%emt 0:01:54]} 14. Na3 {[%emt 0:02:07]} Qc7 {[%emt 0:01:11]} 15. f4 {[%emt 0:02:27]} Rb8 {[%emt 0:01:47]} 16. Nac2 {[%emt 0:04:26]} b5 {[%emt 0:01:38]} 17. b3 {[%emt 0:01:59]} b4 {[%emt 0:00:22]} 18. Bb2 {[%emt 0:00:28]} Bb7 {[%emt 0:00:02]} 19. f5 {[%emt 0:05:15]} Bd6 {[%emt 0:00:11]} 20. g3 {[%emt 0:03:21]} h4 {[%emt 0:00:07]} 21. gxh4 {[%emt 0:01:07]} Ne5 {[%emt 0:02:46]} 22. fxe6 {[%emt 0:08:23]} dxe6 {[%emt 0:00:20]} 23. Kh1 {[%emt 0:07:59]} g3 {[%emt 0:00:11]} 24. h3 {[%emt 0:01:20]} g2+ {[%emt 0:00:11]} 25. Nxg2 {[%emt 0:00:41]} Rg3 {[%emt 0:00:02]} 26. Nf4 {[%emt 0:03:46]} Ng6 {[%emt 0:00:18]} 27. Nh5 {[%emt 0:01:59]} Rxh3+ {[%emt 0:00:03]} 28. Kg1 {[%emt 0:00:17]} Bh2+ {[%emt 0:00:10]} 29. Kg2 {[%emt 0:01:58]} Rxh4 {[%emt 0:01:06]} 30. Ng7+ {[%emt 0:00:29]} Kd8 {[%emt 0:02:54]} 31. Bf6+ {[%emt 0:00:22]} Kc8 {[%emt 0:00:01]} 32. Bxh4 {[%emt 0:00:34]} Nxh4+ {[%emt 0:00:01]} 33. Kh1 {[%emt 0:00:20]} Be5 {[%emt 0:00:03]} 34. Nxe6 {[%emt 0:00:23]} Qe7 {[%emt 0:06:05]} 35. Rad1 {[%emt 0:15:58]} Qxe6 {[%emt 0:00:12]} 36. Qe3 {[%emt 0:00:19]} Nf5 {[%emt 0:02:07]} 37. Qxc5+ {[%emt 0:00:46]} Kd7 {[%emt 0:00:02]} 38. Kg1 {[%emt 0:01:31]} Rg8+ {[%emt 0:05:54]} 39. Kf2 {[%emt 0:00:13]} Qf6 {[%emt 0:00:51]} 40. Ke2 {[%emt 0:01:39]} Ng3+ {[%emt 0:00:31]} 41. Kd2 {[%emt 0:15:55]} Nxf1+ {[%emt 0:15:41]} 42. Rxf1 {[%emt 0:00:00]} Qxf1 {[%emt 0:00:00]} 0-1

[Event "GER-ch Youth-U10 2022"]
[Site "Willingen"]
[Date "2022.06.06"]
[Round "4.2"]
[White "Kateryniuk, Ivan"]
[Black "Vartanian, Roman"]
[Result "1-0"]
[ECO "B28"]
[WhiteElo "1187"]
[BlackElo "1511"]
[Annotator "NA RC COMBH"]
[PlyCount "83"]
[EventDate "2022.06.05"]
[EventType "swiss"]
[EventRounds "11"]
[EventCountry "GER"]
[SourceTitle "playchess.com"]
[Source "ChessBase"]
[SourceQuality "1"]
[TimeControl "40/4500+30:900+30"]

1. e4 {[%emt 0:00:08]} c5 {[%emt 0:00:08]} 2. c3 {[%emt 0:00:11]} e6 {[%emt 0:00:12]} 3. Nf3 {[%emt 0:00:43]} a6 {[%emt 0:00:23]} 4. d4 {[%emt 0:00:45]} Nf6 {[%emt 0:00:20]} 5. e5 {[%emt 0:01:33]} Nd5 {[%emt 0:00:40]} 6. Bc4 {[%emt 0:00:43]} Nb6 {[%emt 0:00:54]} 7. Bb3 {[%emt 0:00:14]} cxd4 {[%emt 0:02:46]} 8. cxd4 {[%emt 0:00:11]} d5 {[%emt 0:00:35]} 9. Nc3 {[%emt 0:01:00]} Nc6 {[%emt 0:00:22]} 10. a3 {[%emt 0:00:29]} Bd7 {[%emt 0:01:04]} 11. Bc2 {[%emt 0:01:12]} h6 {[%emt 0:00:51]} 12. Ne2 {[%emt 0:07:43]} g6 {[%emt 0:04:14]} 13. b3 {[%emt 0:09:19]} Bg7 {[%emt 0:00:37]} 14. Be3 {[%emt 0:00:12]} O-O {[%emt 0:00:17]} 15. Qd2 {[%emt 0:00:09]} Kh7 {[%emt 0:00:20]} 16. h4 {[%emt 0:00:42]} Rh8 {[%emt 0:22:33]} 17. h5 {[%emt 0:01:11]} Kg8 {[%emt 0:00:25]} 18. hxg6 {[%emt 0:00:40]} fxg6 {[%emt 0:00:39]} 19. Bxg6 {[%emt 0:01:38]} Be8 {[%emt 0:00:24]} 20. Bc2 {[%emt 0:00:43]} Bf7 {[%emt 0:00:39]} 21. Rh3 {[%emt 0:02:50]} h5 {[%emt 0:00:45]} 22. Rg3 {[%emt 0:00:44]} Kf8 {[%emt 0:03:45]} 23. Nf4 {[%emt 0:01:58]} Ne7 {[%emt 0:02:28]} 24. Ng5 {[%emt 0:01:30]} Qd7 {[%emt 0:00:56]} 25. Nh7+ {[%emt 0:00:39]} Rxh7 {[%emt 0:01:15]} 26. Bxh7 {[%emt 0:00:48]} Nf5 {[%emt 0:00:55]} 27. Bxf5 {[%emt 0:00:24]} exf5 {[%emt 0:00:06]} 28. Qb4+ {[%emt 0:00:08]} Ke8 {[%emt 0:00:44]} 29. Rxg7 {[%emt 0:00:17]} Nc8 {[%emt 0:00:27]} 30. e6 {[%emt 0:00:09]} Bxe6 {[%emt 0:00:14]} 31. Rxd7 {[%emt 0:00:06]} Bxd7 {[%emt 0:00:06]} 32. Nxd5 {[%emt 0:00:09]} a5 {[%emt 0:00:11]} 33. Qxb7 {[%emt 0:00:23]} Ra7 {[%emt 0:00:08]} 34. Nc7+ {[%emt 0:00:21]} Kd8 {[%emt 0:00:07]} 35. Bg5+ {[%emt 0:00:07]} Ne7 {[%emt 0:00:10]} 36. Qxa7 {[%emt 0:00:07]} Bc8 {[%emt 0:00:10]} 37. Nd5 {[%emt 0:00:08]} Bd7 {[%emt 0:00:06]} 38. Nb6 {[%emt 0:00:12]} Ke8 {[%emt 0:00:06]} 39. Qxd7+ {[%emt 0:00:06]} Kf7 {[%emt 0:00:07]} 40. Qxe7+ {[%emt 0:00:06]} Kg6 {[%emt 0:00:08]} 41. Nd5 {[%emt 0:15:12]} h4 {[%emt 0:15:16]} 42. Nf4# {[%emt 0:00:16]} 1-0